[Event "Titled Tuesday Blitz November 08 Late 2022"]
[White "Gritsenko, Nikolai"]
[Black "Van Dael, Siem"]
[WhiteFideId "14112493"]
[BlackFideId "1049771"]
[WhiteElo "2389"]
[BlackElo "2287"]
[Result "1/2-1/2"]
[Round "02"]
[TimeControl "180+1"]
[Date "2022.11.09"]
[WhiteClock "0:00:12"]
[BlackClock "0:01:12"]

1. d4 {[%clk 0:03:00]}  Nf6 {[%clk 0:02:59]} 2. Bg5 {[%clk 0:03:00]}  Ne4 {[%clk 0:02:59]} 3. h4 {[%clk 0:03:00]}  h6 {[%clk 0:02:55]} 4. Bf4 {[%clk 0:02:59]}  c5 {[%clk 0:02:54]} 5. d5 {[%clk 0:02:57]}  Qb6 {[%clk 0:02:53]} 6. Qc1 {[%clk 0:02:53]}  e6 {[%clk 0:02:51]} 7. dxe6 {[%clk 0:02:42]}  dxe6 {[%clk 0:02:50]} 8. Nd2 {[%clk 0:02:37]}  Nxd2 {[%clk 0:02:43]} 9. Bxd2 {[%clk 0:02:37]}  Nc6 {[%clk 0:02:42]} 10. Nf3 {[%clk 0:02:36]}  Be7 {[%clk 0:02:38]} 11. Bc3 {[%clk 0:02:35]}  Bf6 {[%clk 0:02:38]} 12. Bxf6 {[%clk 0:02:33]}  gxf6 {[%clk 0:02:39]} 13. c3 {[%clk 0:02:28]}  Qc7 {[%clk 0:02:33]} 14. Qe3 {[%clk 0:02:18]}  b6 {[%clk 0:02:33]} 15. O-O-O {[%clk 0:02:17]}  Bb7 {[%clk 0:02:33]} 16. Rg1 {[%clk 0:01:40]}  h5 {[%clk 0:02:28]} 17. g3 {[%clk 0:01:38]}  Ne5 {[%clk 0:02:26]} 18. Nxe5 {[%clk 0:01:36]}  Qxe5 {[%clk 0:02:26]} 19. Qxe5 {[%clk 0:01:34]}  fxe5 {[%clk 0:02:26]} 20. Bg2 {[%clk 0:01:30]}  e4 {[%clk 0:02:21]} 21. Kd2 {[%clk 0:01:26]}  Ke7 {[%clk 0:02:20]} 22. Ke3 {[%clk 0:01:26]}  f5 {[%clk 0:02:21]} 23. f3 {[%clk 0:01:18]}  Rhg8 {[%clk 0:02:19]} 24. Kf2 {[%clk 0:00:56]}  e3+ {[%clk 0:02:17]} 25. Kxe3 {[%clk 0:00:56]}  Rxg3 {[%clk 0:02:17]} 26. Kf2 {[%clk 0:00:55]}  f4 {[%clk 0:02:03]} 27. Bf1 {[%clk 0:00:52]}  Rxg1 {[%clk 0:01:59]} 28. Kxg1 {[%clk 0:00:51]}  Bd5 {[%clk 0:01:53]} 29. a3 {[%clk 0:00:50]}  Rg8+ {[%clk 0:01:50]} 30. Kf2 {[%clk 0:00:49]}  Kf6 {[%clk 0:01:50]} 31. Bh3 {[%clk 0:00:40]}  Rg3 {[%clk 0:01:50]} 32. Bg2 {[%clk 0:00:33]}  Ke5 {[%clk 0:01:44]} 33. e3 {[%clk 0:00:22]}  Rg7 {[%clk 0:01:42]} 34. e4 {[%clk 0:00:20]}  Bc6 {[%clk 0:01:34]} 35. Bh3 {[%clk 0:00:18]}  Rd7 {[%clk 0:01:34]} 36. Rxd7 {[%clk 0:00:17]}  Bxd7 {[%clk 0:01:35]} 37. Bf1 {[%clk 0:00:17]}  Ba4 {[%clk 0:01:33]} 38. Ba6 {[%clk 0:00:16]}  Bd1 {[%clk 0:01:30]} 39. Bb7 {[%clk 0:00:15]}  Kd6 {[%clk 0:01:24]} 40. Ba6 {[%clk 0:00:14]}  Kc6 {[%clk 0:01:22]} 41. Bc4 {[%clk 0:00:14]}  Kd6 {[%clk 0:01:21]} 42. Bb5 {[%clk 0:00:14]}  Ke7 {[%clk 0:01:20]} 43. e5 {[%clk 0:00:14]}  Bc2 {[%clk 0:01:20]} 44. Ke2 {[%clk 0:00:13]}  Bf5 {[%clk 0:01:18]} 45. Bd3 {[%clk 0:00:13]}  Kd7 {[%clk 0:01:12]} 46. Bxf5 {[%clk 0:00:13]}  exf5 {[%clk 0:01:12]} 47. Kd3 {[%clk 0:00:13]}  Ke6 {[%clk 0:01:13]} 48. c4 {[%clk 0:00:13]}  a6 {[%clk 0:01:14]} 49. a4 {[%clk 0:00:12]}  Kxe5 {[%clk 0:01:14]} 50. b3 {[%clk 0:00:13]}  Kd6 {[%clk 0:01:14]} 51. Kc3 {[%clk 0:00:12]}  Kc6 {[%clk 0:01:15]} 52. Kd3 {[%clk 0:00:12]}  b5 {[%clk 0:01:15]} 53. a5 {[%clk 0:00:12]}  bxc4+ {[%clk 0:01:11]} 54. bxc4 {[%clk 0:00:12]}  Kd6 {[%clk 0:01:11]} 55. Kc3 {[%clk 0:00:12]}  Ke5 {[%clk 0:01:12]} 56. Kd3 {[%clk 0:00:12]} 1/2-1/2


[Site "https://www.chess.com"]

[Event "Titled Tuesday Blitz November 08 Late 2022"]
[White "Gurevich, Dmitry"]
[Black "Chigaev, Maksim"]
[WhiteFideId "2000407"]
[BlackFideId "4108116"]
[WhiteElo "2506"]
[BlackElo "2541"]
[Result "0-1"]
[Round "02"]
[TimeControl "180+1"]
[Date "2022.11.08"]
[WhiteClock "0:01:48"]
[BlackClock "0:01:31"]

1. d4 {[%clk 0:02:59]}  Nf6 {[%clk 0:02:57]} 2. c4 {[%clk 0:02:58]}  e6 {[%clk 0:02:57]} 3. Nf3 {[%clk 0:02:57]}  d5 {[%clk 0:02:57]} 4. Nc3 {[%clk 0:02:57]}  Bb4 {[%clk 0:02:54]} 5. cxd5 {[%clk 0:02:56]}  exd5 {[%clk 0:02:53]} 6. Qa4+ {[%clk 0:02:54]}  Nc6 {[%clk 0:02:53]} 7. Bg5 {[%clk 0:02:53]}  h6 {[%clk 0:02:52]} 8. Bxf6 {[%clk 0:02:53]}  Qxf6 {[%clk 0:02:53]} 9. e3 {[%clk 0:02:53]}  O-O {[%clk 0:02:52]} 10. Rc1 {[%clk 0:02:52]}  Rd8 {[%clk 0:02:51]} 11. Be2 {[%clk 0:02:51]}  Qg6 {[%clk 0:02:35]} 12. O-O {[%clk 0:02:44]}  Bh3 {[%clk 0:02:28]} 13. Nh4 {[%clk 0:02:43]}  Qg5 {[%clk 0:02:25]} 14. Bf3 {[%clk 0:02:18]}  Bd7 {[%clk 0:01:36]} 15. Nxd5 {[%clk 0:02:01]}  Qxh4 {[%clk 0:01:31]} 16. Nxb4 {[%clk 0:01:55]}  Nxd4 {[%clk 0:01:31]} 17. Qd1 {[%clk 0:01:48]}  Nxf3+ {[%clk 0:01:31]} 18. Qxf3 {[%clk 0:01:48]}  Qxb4 {[%clk 0:01:31]} 0-1


[Site "https://www.chess.com"]

[Event "Titled Tuesday Blitz November 08 Late 2022"]
[White "Hamley, Ryan"]
[Black "Yanayt, Eugene"]
[WhiteFideId "30959497"]
[BlackFideId "2020165"]
[WhiteElo "2527"]
[BlackElo "2046"]
[Result "1-0"]
[Round "02"]
[TimeControl "180+1"]
[Date "2022.11.09"]
[WhiteClock "0:00:37"]
[BlackClock "0:00:13"]

1. d4 {[%clk 0:03:00]}  Nf6 {[%clk 0:02:58]} 2. Nf3 {[%clk 0:03:01]}  g6 {[%clk 0:02:57]} 3. Nbd2 {[%clk 0:03:00]}  d5 {[%clk 0:02:56]} 4. b4 {[%clk 0:03:00]}  Bg7 {[%clk 0:02:56]} 5. e3 {[%clk 0:03:01]}  O-O {[%clk 0:02:55]} 6. Be2 {[%clk 0:03:01]}  a5 {[%clk 0:02:55]} 7. b5 {[%clk 0:03:00]}  c6 {[%clk 0:02:55]} 8. a4 {[%clk 0:03:00]}  Nbd7 {[%clk 0:02:54]} 9. c4 {[%clk 0:03:00]}  Qe8 {[%clk 0:02:51]} 10. Ba3 {[%clk 0:02:59]}  Ne4 {[%clk 0:02:44]} 11. Qc2 {[%clk 0:02:57]}  f5 {[%clk 0:02:43]} 12. Qb3 {[%clk 0:02:51]}  Ndf6 {[%clk 0:02:37]} 13. O-O {[%clk 0:02:46]}  Be6 {[%clk 0:02:32]} 14. Rfd1 {[%clk 0:02:41]}  g5 {[%clk 0:02:31]} 15. Nxe4 {[%clk 0:02:37]}  Nxe4 {[%clk 0:02:27]} 16. Nd2 {[%clk 0:02:37]}  Qf7 {[%clk 0:02:20]} 17. bxc6 {[%clk 0:02:31]}  bxc6 {[%clk 0:02:19]} 18. cxd5 {[%clk 0:02:31]}  cxd5 {[%clk 0:02:17]} 19. Nxe4 {[%clk 0:02:14]}  fxe4 {[%clk 0:02:15]} 20. Rf1 {[%clk 0:02:14]}  Rfb8 {[%clk 0:02:08]} 21. Qc3 {[%clk 0:02:14]}  Bd7 {[%clk 0:02:00]} 22. Bc5 {[%clk 0:02:10]}  Re8 {[%clk 0:01:50]} 23. f3 {[%clk 0:02:08]}  Qg6 {[%clk 0:01:45]} 24. Kh1 {[%clk 0:01:59]}  e5 {[%clk 0:01:43]} 25. fxe4 {[%clk 0:01:56]}  exd4 {[%clk 0:01:37]} 26. Bxd4 {[%clk 0:01:52]}  dxe4 {[%clk 0:01:33]} 27. Bc4+ {[%clk 0:01:51]}  Be6 {[%clk 0:01:33]} 28. Bxg7 {[%clk 0:01:44]}  Qxg7 {[%clk 0:01:28]} 29. Rf6 {[%clk 0:01:44]}  Bxc4 {[%clk 0:01:23]} 30. Qxc4+ {[%clk 0:01:45]}  Kh8 {[%clk 0:01:23]} 31. Raf1 {[%clk 0:01:43]}  Rf8 {[%clk 0:01:17]} 32. Qxe4 {[%clk 0:01:39]}  Rae8 {[%clk 0:01:08]} 33. Rxf8+ {[%clk 0:01:30]}  Rxf8 {[%clk 0:01:08]} 34. Qb1 {[%clk 0:01:31]}  h6 {[%clk 0:00:57]} 35. h3 {[%clk 0:01:29]}  Qe7 {[%clk 0:00:51]} 36. Qb2+ {[%clk 0:01:26]}  Kg8 {[%clk 0:00:50]} 37. Qb3+ {[%clk 0:01:26]}  Kg7 {[%clk 0:00:48]} 38. Qc3+ {[%clk 0:01:25]}  Kg6 {[%clk 0:00:46]} 39. Qd3+ {[%clk 0:01:22]}  Kg7 {[%clk 0:00:44]} 40. Qc3+ {[%clk 0:01:17]}  Kg6 {[%clk 0:00:43]} 41. Rxf8 {[%clk 0:01:14]}  Qxf8 {[%clk 0:00:42]} 42. Qxa5 {[%clk 0:01:13]}  Qf1+ {[%clk 0:00:34]} 43. Kh2 {[%clk 0:01:13]}  Qd3 {[%clk 0:00:33]} 44. Qe5 {[%clk 0:01:10]}  h5 {[%clk 0:00:30]} 45. a5 {[%clk 0:01:05]}  g4 {[%clk 0:00:28]} 46. hxg4 {[%clk 0:01:05]}  hxg4 {[%clk 0:00:28]} 47. Qd4 {[%clk 0:01:00]}  Qf5 {[%clk 0:00:26]} 48. Qf4 {[%clk 0:00:54]}  Qh5+ {[%clk 0:00:22]} 49. Kg3 {[%clk 0:00:54]}  Qxa5 {[%clk 0:00:17]} 50. Qxg4+ {[%clk 0:00:54]}  Kf6 {[%clk 0:00:17]} 51. Qd4+ {[%clk 0:00:53]}  Kg6 {[%clk 0:00:16]} 52. Qd6+ {[%clk 0:00:52]}  Kf5 {[%clk 0:00:16]} 53. Qf4+ {[%clk 0:00:51]}  Kg6 {[%clk 0:00:16]} 54. e4 {[%clk 0:00:47]}  Qc3+ {[%clk 0:00:15]} 55. Kg4 {[%clk 0:00:47]}  Qc2 {[%clk 0:00:14]} 56. Qf5+ {[%clk 0:00:47]}  Kg7 {[%clk 0:00:14]} 57. Qg5+ {[%clk 0:00:44]}  Kf7 {[%clk 0:00:14]} 58. Qf5+ {[%clk 0:00:43]}  Kg7 {[%clk 0:00:14]} 59. g3 {[%clk 0:00:40]}  Qe2+ {[%clk 0:00:14]} 60. Qf3 {[%clk 0:00:40]}  Qd2 {[%clk 0:00:14]} 61. e5 {[%clk 0:00:37]}  Kg6 {[%clk 0:00:13]} 62. Qf5+ {[%clk 0:00:37]}  Kg7 {[%clk 0:00:13]} 63. Qg5+ {[%clk 0:00:37]} 1-0


[Site "https://www.chess.com"]

[Event "Titled Tuesday Blitz November 08 Late 2022"]
[White "Harish, Neeraj"]
[Black "Hajiyev, Kanan"]
[WhiteFideId "30958130"]
[BlackFideId "13404148"]
[WhiteElo "1815"]
[BlackElo "2118"]
[Result "0-1"]
[Round "02"]
[TimeControl "180+1"]
[Date "2022.11.09"]
[WhiteClock "0:00:28"]
[BlackClock "0:00:15"]

1. e4 {[%clk 0:03:00]}  c6 {[%clk 0:02:58]} 2. Nc3 {[%clk 0:02:54]}  d5 {[%clk 0:02:59]} 3. Nf3 {[%clk 0:02:51]}  a6 {[%clk 0:02:59]} 4. d4 {[%clk 0:02:49]}  Bg4 {[%clk 0:02:58]} 5. h3 {[%clk 0:02:48]}  Bh5 {[%clk 0:02:57]} 6. Be2 {[%clk 0:02:46]}  e6 {[%clk 0:02:57]} 7. O-O {[%clk 0:02:44]}  Nf6 {[%clk 0:02:57]} 8. e5 {[%clk 0:02:44]}  Nfd7 {[%clk 0:02:56]} 9. Bg5 {[%clk 0:02:34]}  Qc7 {[%clk 0:02:53]} 10. Qd2 {[%clk 0:02:24]}  c5 {[%clk 0:02:51]} 11. Rfe1 {[%clk 0:02:05]}  Bxf3 {[%clk 0:02:44]} 12. Bxf3 {[%clk 0:01:59]}  cxd4 {[%clk 0:02:43]} 13. Qxd4 {[%clk 0:02:00]}  Nc6 {[%clk 0:02:38]} 14. Qd2 {[%clk 0:01:55]}  Ndxe5 {[%clk 0:02:21]} 15. Bxd5 {[%clk 0:01:52]}  Bb4 {[%clk 0:01:56]} 16. Be4 {[%clk 0:01:26]}  O-O {[%clk 0:01:43]} 17. a3 {[%clk 0:01:22]}  Bd6 {[%clk 0:01:27]} 18. Qe2 {[%clk 0:01:06]}  h6 {[%clk 0:01:18]} 19. Be3 {[%clk 0:01:03]}  b5 {[%clk 0:01:07]} 20. Rad1 {[%clk 0:01:01]}  Nc4 {[%clk 0:01:03]} 21. Qf3 {[%clk 0:00:54]}  Nxe3 {[%clk 0:00:58]} 22. Rxe3 {[%clk 0:00:53]}  Ne5 {[%clk 0:00:51]} 23. Qh5 {[%clk 0:00:44]}  Nc4 {[%clk 0:00:42]} 24. Red3 {[%clk 0:00:40]}  Bh2+ {[%clk 0:00:36]} 25. Kh1 {[%clk 0:00:39]}  Nxb2 {[%clk 0:00:22]} 26. g3 {[%clk 0:00:39]}  Nxd1 {[%clk 0:00:19]} 27. Nxd1 {[%clk 0:00:37]}  Bxg3 {[%clk 0:00:19]} 28. Rxg3 {[%clk 0:00:35]}  Rad8 {[%clk 0:00:17]} 29. Qxh6 {[%clk 0:00:32]}  Rxd1+ {[%clk 0:00:15]} 30. Kg2 {[%clk 0:00:27]}  Qxg3+ {[%clk 0:00:15]} 31. fxg3 {[%clk 0:00:28]}  gxh6 {[%clk 0:00:15]} 0-1


[Site "https://www.chess.com"]

[Event "Titled Tuesday Blitz November 08 Late 2022"]
[White "Hoffmann, Asa"]
[Black "Iliaguev, Nisim"]
[WhiteFideId "2001470"]
[BlackFideId "2817276"]
[WhiteElo "2117"]
[BlackElo "2244"]
[Result "0-1"]
[Round "02"]
[TimeControl "180+1"]
[Date "2022.11.09"]
[WhiteClock "0:00:12"]
[BlackClock "0:00:20"]

1. d4 {[%clk 0:02:59]}  Nf6 {[%clk 0:03:00]} 2. Bg5 {[%clk 0:02:52]}  e6 {[%clk 0:02:59]} 3. Nd2 {[%clk 0:02:50]}  h6 {[%clk 0:03:00]} 4. Bh4 {[%clk 0:02:50]}  d5 {[%clk 0:03:01]} 5. e3 {[%clk 0:02:49]}  c5 {[%clk 0:03:01]} 6. c3 {[%clk 0:02:49]}  Nc6 {[%clk 0:03:01]} 7. f4 {[%clk 0:02:49]}  Be7 {[%clk 0:03:01]} 8. Bd3 {[%clk 0:02:49]}  b6 {[%clk 0:02:58]} 9. Ngf3 {[%clk 0:02:48]}  a5 {[%clk 0:02:59]} 10. O-O {[%clk 0:02:47]}  Ba6 {[%clk 0:02:59]} 11. Bxa6 {[%clk 0:02:46]}  Rxa6 {[%clk 0:03:00]} 12. Ne5 {[%clk 0:02:45]}  b5 {[%clk 0:02:49]} 13. Qe2 {[%clk 0:02:41]}  Qb6 {[%clk 0:02:46]} 14. a4 {[%clk 0:02:36]}  b4 {[%clk 0:02:41]} 15. f5 {[%clk 0:02:26]}  cxd4 {[%clk 0:02:34]} 16. cxd4 {[%clk 0:02:21]}  Nxe5 {[%clk 0:02:25]} 17. dxe5 {[%clk 0:02:20]}  Nd7 {[%clk 0:02:23]} 18. Bxe7 {[%clk 0:02:09]}  Kxe7 {[%clk 0:02:22]} 19. fxe6 {[%clk 0:01:53]}  Qxe6 {[%clk 0:02:18]} 20. Nf3 {[%clk 0:01:49]}  Rb6 {[%clk 0:02:08]} 21. Nd4 {[%clk 0:01:48]}  Qxe5 {[%clk 0:01:55]} 22. Rf5 {[%clk 0:01:44]}  Qc7 {[%clk 0:01:31]} 23. Raf1 {[%clk 0:01:42]}  Nf6 {[%clk 0:01:27]} 24. R5f4 {[%clk 0:01:27]}  Re8 {[%clk 0:01:24]} 25. Qd3 {[%clk 0:01:23]}  Kf8 {[%clk 0:01:20]} 26. h3 {[%clk 0:01:21]}  Qe5 {[%clk 0:01:17]} 27. R1f3 {[%clk 0:01:16]}  Kg8 {[%clk 0:01:14]} 28. Nf5 {[%clk 0:01:09]}  Qxb2 {[%clk 0:01:06]} 29. Rg3 {[%clk 0:01:04]}  Nh5 {[%clk 0:00:46]} 30. Nxg7 {[%clk 0:00:50]}  Nxg7 {[%clk 0:00:37]} 31. Rfg4 {[%clk 0:00:49]}  Rg6 {[%clk 0:00:32]} 32. Rxg6 {[%clk 0:00:47]}  fxg6 {[%clk 0:00:32]} 33. Qxd5+ {[%clk 0:00:43]}  Kh7 {[%clk 0:00:28]} 34. Qxa5 {[%clk 0:00:42]}  b3 {[%clk 0:00:26]} 35. Qb5 {[%clk 0:00:36]}  Qc2 {[%clk 0:00:25]} 36. e4 {[%clk 0:00:26]}  b2 {[%clk 0:00:22]} 37. Rb3 {[%clk 0:00:25]}  Qc1+ {[%clk 0:00:19]} 38. Kh2 {[%clk 0:00:23]}  Qf4+ {[%clk 0:00:20]} 39. Kg1 {[%clk 0:00:22]}  Rxe4 {[%clk 0:00:20]} 40. Rf3 {[%clk 0:00:20]}  Re1+ {[%clk 0:00:20]} 41. Kf2 {[%clk 0:00:18]}  Qd2+ {[%clk 0:00:20]} 42. Kg3 {[%clk 0:00:17]}  b1=Q {[%clk 0:00:21]} 43. Qc5 {[%clk 0:00:13]}  Qg5+ {[%clk 0:00:20]} 44. Qxg5 {[%clk 0:00:13]}  hxg5 {[%clk 0:00:21]} 45. Kf2 {[%clk 0:00:12]}  Rf1+ {[%clk 0:00:20]} 0-1


[Site "https://www.chess.com"]

[Event "Titled Tuesday Blitz November 08 Late 2022"]
[White "Hristodoulou, Panagiotis"]
[Black "Zeman, Matyas"]
[WhiteFideId "4214340"]
[BlackFideId "364398"]
[WhiteElo "2272"]
[BlackElo "2254"]
[Result "1-0"]
[Round "02"]
[TimeControl "180+1"]
[Date "2022.11.09"]
[WhiteClock "0:01:03"]
[BlackClock "0:00:45"]

1. e4 {[%clk 0:02:56]}  c6 {[%clk 0:02:59]} 2. d4 {[%clk 0:02:49]}  d5 {[%clk 0:03:00]} 3. e5 {[%clk 0:02:48]}  Bf5 {[%clk 0:02:47]} 4. h4 {[%clk 0:02:47]}  Qb6 {[%clk 0:02:45]} 5. g4 {[%clk 0:02:44]}  Bd7 {[%clk 0:02:44]} 6. h5 {[%clk 0:02:40]}  e6 {[%clk 0:02:39]} 7. f4 {[%clk 0:02:34]}  c5 {[%clk 0:02:39]} 8. c3 {[%clk 0:02:33]}  Nc6 {[%clk 0:02:39]} 9. Nf3 {[%clk 0:02:33]}  Rc8 {[%clk 0:02:37]} 10. Rh2 {[%clk 0:02:32]}  Nh6 {[%clk 0:02:26]} 11. Bh3 {[%clk 0:02:29]}  cxd4 {[%clk 0:02:23]} 12. cxd4 {[%clk 0:02:25]}  Nb4 {[%clk 0:02:22]} 13. Nc3 {[%clk 0:02:22]}  Bb5 {[%clk 0:02:21]} 14. Rd2 {[%clk 0:02:15]}  Be7 {[%clk 0:02:14]} 15. a3 {[%clk 0:02:14]}  Nc6 {[%clk 0:02:12]} 16. g5 {[%clk 0:02:01]}  Ng8 {[%clk 0:02:08]} 17. f5 {[%clk 0:01:59]}  Nd8 {[%clk 0:02:01]} 18. f6 {[%clk 0:01:38]}  gxf6 {[%clk 0:02:00]} 19. exf6 {[%clk 0:01:34]}  Bd6 {[%clk 0:01:59]} 20. Rg2 {[%clk 0:01:33]}  Qc7 {[%clk 0:01:42]} 21. Be3 {[%clk 0:01:31]}  Ba6 {[%clk 0:01:36]} 22. Qd2 {[%clk 0:01:27]}  Bg3+ {[%clk 0:01:34]} 23. Kd1 {[%clk 0:01:27]}  Bd6 {[%clk 0:01:31]} 24. Rc1 {[%clk 0:01:25]}  h6 {[%clk 0:01:22]} 25. g6 {[%clk 0:01:20]}  Nxf6 {[%clk 0:01:22]} 26. Bxh6 {[%clk 0:01:09]}  Ne4 {[%clk 0:01:17]} 27. Nxe4 {[%clk 0:01:05]}  Qxc1+ {[%clk 0:01:18]} 28. Qxc1 {[%clk 0:01:05]}  Rxc1+ {[%clk 0:01:19]} 29. Bxc1 {[%clk 0:01:06]}  dxe4 {[%clk 0:01:20]} 30. g7 {[%clk 0:01:06]}  Rg8 {[%clk 0:01:09]} 31. h6 {[%clk 0:01:06]}  exf3 {[%clk 0:00:44]} 32. h7 {[%clk 0:01:05]}  fxg2 {[%clk 0:00:43]} 33. hxg8=Q+ {[%clk 0:01:05]}  Kd7 {[%clk 0:00:44]} 34. Qxd8+ {[%clk 0:01:03]}  Kxd8 {[%clk 0:00:45]} 35. g8=Q+ {[%clk 0:01:03]} 1-0


[Site "https://www.chess.com"]

[Event "Titled Tuesday Blitz November 08 Late 2022"]
[White "Ivanisevic, Ivan"]
[Black "Mendez Fortes, Eduardo Jesus"]
[WhiteFideId "912417"]
[BlackFideId "3502376"]
[WhiteElo "2794"]
[BlackElo "2551"]
[Result "1/2-1/2"]
[Round "02"]
[TimeControl "180+1"]
[Date "2022.11.09"]
[WhiteClock "0:00:08"]
[BlackClock "0:00:03"]

1. d4 {[%clk 0:03:00]}  Nf6 {[%clk 0:02:59]} 2. Nf3 {[%clk 0:03:00]}  d5 {[%clk 0:02:59]} 3. Bf4 {[%clk 0:03:00]}  c5 {[%clk 0:02:58]} 4. e3 {[%clk 0:03:00]}  Nc6 {[%clk 0:02:58]} 5. Nbd2 {[%clk 0:03:01]}  cxd4 {[%clk 0:02:57]} 6. exd4 {[%clk 0:03:01]}  Bf5 {[%clk 0:02:57]} 7. Bb5 {[%clk 0:02:59]}  Qb6 {[%clk 0:02:45]} 8. c4 {[%clk 0:02:59]}  e6 {[%clk 0:02:41]} 9. O-O {[%clk 0:02:51]}  Be7 {[%clk 0:02:36]} 10. Qa4 {[%clk 0:02:50]}  O-O {[%clk 0:02:07]} 11. c5 {[%clk 0:02:48]}  Qd8 {[%clk 0:01:57]} 12. Bxc6 {[%clk 0:02:48]}  bxc6 {[%clk 0:01:58]} 13. Ne5 {[%clk 0:02:48]}  Qb8 {[%clk 0:01:22]} 14. Nb3 {[%clk 0:02:24]}  Qb5 {[%clk 0:01:15]} 15. Qxb5 {[%clk 0:02:18]}  cxb5 {[%clk 0:01:16]} 16. Nc6 {[%clk 0:02:16]}  Rfe8 {[%clk 0:01:13]} 17. Nxe7+ {[%clk 0:02:06]}  Rxe7 {[%clk 0:01:13]} 18. Na5 {[%clk 0:02:07]}  Rc8 {[%clk 0:01:07]} 19. Rfc1 {[%clk 0:02:05]}  Ne8 {[%clk 0:01:01]} 20. b4 {[%clk 0:01:56]}  f6 {[%clk 0:00:59]} 21. a4 {[%clk 0:01:55]}  a6 {[%clk 0:00:57]} 22. axb5 {[%clk 0:01:54]}  axb5 {[%clk 0:00:58]} 23. c6 {[%clk 0:01:27]}  Bd3 {[%clk 0:00:46]} 24. Rc5 {[%clk 0:01:19]}  Ra7 {[%clk 0:00:39]} 25. Rd1 {[%clk 0:01:11]}  Be2 {[%clk 0:00:21]} 26. Re1 {[%clk 0:01:10]}  Bd3 {[%clk 0:00:21]} 27. h4 {[%clk 0:01:08]}  Kf7 {[%clk 0:00:20]} 28. Rd1 {[%clk 0:01:04]}  Be2 {[%clk 0:00:19]} 29. Rd2 {[%clk 0:01:03]}  Bc4 {[%clk 0:00:19]} 30. Nxc4 {[%clk 0:01:02]}  bxc4 {[%clk 0:00:19]} 31. b5 {[%clk 0:01:02]}  Ra1+ {[%clk 0:00:19]} 32. Kh2 {[%clk 0:01:01]}  Rb1 {[%clk 0:00:18]} 33. Ra2 {[%clk 0:01:00]}  h6 {[%clk 0:00:18]} 34. h5 {[%clk 0:00:59]}  g5 {[%clk 0:00:17]} 35. hxg6+ {[%clk 0:00:47]}  Kxg6 {[%clk 0:00:17]} 36. Ra6 {[%clk 0:00:47]}  Kf5 {[%clk 0:00:17]} 37. Bg3 {[%clk 0:00:45]}  Ke4 {[%clk 0:00:15]} 38. b6 {[%clk 0:00:42]}  Kxd4 {[%clk 0:00:15]} 39. b7 {[%clk 0:00:43]}  Rd8 {[%clk 0:00:15]} 40. c7 {[%clk 0:00:40]}  Nxc7 {[%clk 0:00:14]} 41. Rxc7 {[%clk 0:00:37]}  c3 {[%clk 0:00:14]} 42. Ra8 {[%clk 0:00:34]}  Rxb7 {[%clk 0:00:12]} 43. Rxd8 {[%clk 0:00:33]}  Rxc7 {[%clk 0:00:12]} 44. Bxc7 {[%clk 0:00:34]}  Kd3 {[%clk 0:00:11]} 45. Bf4 {[%clk 0:00:34]}  e5 {[%clk 0:00:12]} 46. Bxh6 {[%clk 0:00:33]}  d4 {[%clk 0:00:11]} 47. Kg3 {[%clk 0:00:33]}  f5 {[%clk 0:00:11]} 48. Rc8 {[%clk 0:00:29]}  f4+ {[%clk 0:00:11]} 49. Kf3 {[%clk 0:00:22]}  Kd2 {[%clk 0:00:10]} 50. g3 {[%clk 0:00:22]}  c2 {[%clk 0:00:05]} 51. gxf4 {[%clk 0:00:22]}  c1=Q {[%clk 0:00:04]} 52. fxe5+ {[%clk 0:00:21]}  Kd3 {[%clk 0:00:03]} 53. Bxc1 {[%clk 0:00:08]} 1/2-1/2


[Site "https://www.chess.com"]